Cogmind - Beta 17.1 @@@ ROGUE MODE // 2026.09.19 @ 18:24:29 Player: Talon Java Result: Destroyed by S-10 Pest with Light Assault Rifle Performance ------------- Evolutions (0) 0 Regions Visited (2) 400 Robots Destroyed (18) 90 Value Destroyed (462) 462 Prototype IDs (1) 20 Alien Tech Used (0) 0 Bonus (5093) 5093 TOTAL SCORE: 6065 Bonus ------- Prayed to X0-1V1 5000 Major X0-1V1 Interference 100 Friendly Fire -7 Cogmind --------- Core Integrity 0/100 Matter 260/300 Energy 160/160 System Corruption 4% Temperature Cool (0) Movement Walking (190) Ox1 Location -10/Subcaves Parts ------- > --- POWER (1) -------- Light Nuclear Core (fused) > --- PROPULSION (2) --- Aluminum Leg Aluminum Leg > --- UTILITY (2) ------ Large Storage Unit Self-contained Transmogrifier > --- WEAPON (3) ------- Assault Rifle Light Assault Rifle Light Assault Rifle (fused) > --- INVENTORY (15) --- Light Ion Engine Light Treads Aluminum Leg Aluminum Leg Aluminum Leg Heat Sink High-capacity Storage Unit Tractor Beam X0-1V1's Piety Tracker Light Assault Rifle Light Assault Rifle Light Assault Rifle Light Assault Rifle Peak State ------------ > --- POWER ------------ Light Nuclear Core > --- PROPULSION ------- Aluminum Leg Aluminum Leg > --- UTILITY ---------- Large Storage Unit Self-contained Transmogrifier > --- WEAPON ----------- Assault Rifle Light Assault Rifle Light Assault Rifle > --- INVENTORY -------- Light Ion Engine Light Treads Aluminum Leg Aluminum Leg Aluminum Leg Heat Sink High-capacity Storage Unit Tractor Beam X0-1V1's Piety Tracker Light Assault Rifle Light Assault Rifle Light Assault Rifle Light Assault Rifle [Rating: 20] Favorites ----------- Power Ion Engine Engine Ion Engine Power Core Light Nuclear Core Propulsion Aluminum Leg Treads Light Treads Leg Aluminum Leg Utility Targeting Computer Device Self-contained Transmogrifier Storage Large Storage Unit Processor Targeting Computer Weapon Light Assault Rifle Ballistic Gun Light Assault Rifle Build | -11 -10 -10 ------- Run | Yrd Mat Sub Slots Evolved . | . . . Power . | . . . Propulsion . | . . . Utility . | . . . Weapon . | . . . Parts Attached 10 | . 8 2 Power 1 | . 1 . Engine . | . . . Core 1 | . 1 . Reactor . | . . . Propulsion 4 | . 4 . Treads 2 | . 2 . Leg 2 | . 2 . Wheel . | . . . Hover . | . . . Flight . | . . . Utility 3 | . 3 . Device . | . . . Storage 2 | . 2 . Processor 1 | . 1 . Hackware . | . . . Protection . | . . . Artifact . | . . . Weapon 2 | . . 2 Energy Gun . | . . . Energy Cannon . | . . . Ballistic Gun 2 | . . 2 Ballistic Cannon . | . . . Launcher . | . . . Special Weapon . | . . . Impact Weapon . | . . . Slashing Weapon . | . . . Piercing Weapon . | . . . Special Melee Weapon . | . . . Unidentified Prototypes . | . . . Parts Lost . | . . . Power . | . . . Propulsion . | . . . Utility . | . . . Weapon . | . . . Highest Loss Streak . | . . . To Critical Strikes . | . . . Average Backups 10 | 5 9 13 Power 1 | 1 1 1 Propulsion 3 | 3 2 4 Utility 2 | . 2 4 Weapon 3 | 1 3 4 Tool/Special . | . . . Unused Backups 15 | . 5 10 Power 2 | . 1 1 Propulsion 3 | . . 3 Utility 5 | . 2 3 Weapon 5 | . 2 3 Tool/Special . | . . . Average Slot Usage (%) 98 | . 98 99 Engine 7 | . 8 . Core 5 | . 5 12 Treads 7 | . 7 . Leg 20 | . 20 25 Device 1 | . . 12 Storage 13 | . 14 12 Processor 11 | . 12 . Ballistic Gun 28 | . 28 34 Peak Build Rating 20 | 6 19 20 Average Rating 9 | 6 8 19 On Entrance 10 | 6 6 19 Avg Prop Armor Cover (%) . | . . . Naked Turns . | . . . Heaviest Build 29 | 13 28 29 Greatest Support 40 | 20 40 20 Greatest Overweight (x) 1 | . 1 1 Average Overweight (x) . | . . 1 Largest Inventory Capacity 15 | 8 15 15 Average Capacity 13 | 8 12 15 Most Carried 14 | 5 14 14 Average Carried 10 | 4 9 13 Final Capacity 15 | 8 15 15 Final Carried 14 | 4 14 13 Class Distribution -------------------- 89% | Mutant 10% | Gunner Dominant Class ---------------- Mutant | -10/Materials Gunner | -10/Subcaves Resources | -11 -10 -10 ----------- Run | Yrd Mat Sub Matter Collected 543 | 200 293 50 Remotely . | . . . Salvage Created 590 | . 541 49 Parts 38 | . 31 7 Haulers Intercepted 1 | . 1 . Recyclers Shooed . | . . . Parts Field Recycled . | . . . Retrieved Matter . | . . . Parts Self-Destructed 2 | . . 2 Prevented . | . . . Parts Restored . | . . . Kills | -11 -10 -10 ------- Run | Yrd Mat Sub Combat Hostiles Destroyed 17 | . 14 3 Guns 17 | . 14 3 Classes Destroyed 3 | . 3 . Hauler 1 | . 1 . Swarmer 6 | . 3 3 Grunt 11 | . 11 . Best Kill Streak 4 | . 4 3 Combat Bots Only 4 | . 4 3 Max Kills in Single Turn 2 | . 2 1 Gunslinging 1 | . 1 . Exploded . | . . . Melee . | . . . Uniques/NPCs Destroyed . | . . . Combat | -11 -10 -10 -------- Run | Yrd Mat Sub Hostile Shots Fired 87 | . 63 24 Missed 29 | . 23 6 Hits 58 | . 40 18 Projectile 58 | . 40 18 Critical Strikes 2 | . 2 . Damage Taken 593 | . 459 134 Core 104 | . 46 58 Absorbed by Shields . | . . . Core Remaining (%) 100 | 100 . . Volleys Fired 58 | . 52 6 Largest 3 | . 2 3 Hottest 60 | . 40 60 Shots Fired 123 | . 104 19 Gun 123 | . 104 19 Cannon . | . . . Launcher . | . . . Special . | . . . Kinetic 123 | . 104 19 Thermal . | . . . Explosive . | . . . Electromagnetic . | . . . Robot Hit Streak 15 | . 15 2 Robot Miss Streak 3 | . 3 2 Penetration Max . | . . . Secondary Targets 5 | . 2 3 Max Gunslinging Chain 1 | . 1 1 Shots Hit Robots 87 | . 78 9 Core Hits 33 | . 29 4 Critical Kills . | . . . Critical Parts Destroyed 1 | . 1 . Critical Strikes 1 | . 1 . Destroy 1 | . 1 . Melee Attacks . | . . . Impact . | . . . Slashing . | . . . Piercing . | . . . Sneak Attacks . | . . . Combat Hostiles . | . . . Follow-up Attacks . | . . . Damage Inflicted 890 | . 799 91 Guns 890 | . 799 91 Cannons . | . . . Explosions . | . . . Melee . | . . . Ramming . | . . . Kinetic 890 | . 799 91 Thermal . | . . . Explosive . | . . . Electromagnetic . | . . . Impact . | . . . Slashing . | . . . Piercing . | . . . Highest Corruption 4 | . 4 4 Average Corruption 3 | . 3 4 Corruption Purged . | . . . Corruption Blocked . | . . . Effects 9 | . 6 3 Message Errors 1 | . . 1 Matter Fused 5 | . 4 1 Data Loss (minor) 1 | . 1 . Misfires 1 | . . 1 Alerts 1 | . 1 . Overload Shots . | . . . Overflow Damage . | . . . Projectiles . | . . . Explosions . | . . . Melee . | . . . Knockbacks . | . . . Impact . | . . . Kinetic . | . . . Secondary . | . . . Self-Inflicted Damage . | . . . Shots . | . . . Rammed . | . . . Targets Rammed . | . . . Kicked . | . . . Crushed . | . . . Highest Temperature 27 | . 27 . Average Temperature 9 | . 9 . Received Heat Transfer 252 | . 252 . Siege Activations . | . . . Martial Activations . | . . . Shielding Activations . | . . . Robots Disrupted . | . . . Combat Hostiles . | . . . Robots Corrupted . | . . . Combat Hostiles . | . . . Parts Fried . | . . . Impact Corruptions . | . . . Robots Melted . | . . . Combat Hostiles . | . . . Parts Melted . | . . . Heat Transferred . | . . . Parts Sabotaged . | . . . Parts Stolen . | . . . Parts Stripped . | . . . Power Chain Reactions . | . . . Alert | -11 -10 -10 ------- Run | Yrd Mat Sub Maximum Alert Level 1 | . 1 . Low Security (%) 99 | 100 99 . Level 1 . | . . . Level 2 . | . . . Level 3 . | . . . Level 4 . | . . . Level 5 . | . . . High Security . | . . . Max Security . | . . . Peak Influence 207 | . 207 . Initial . | . . . Average 71 | . 71 . Influence Increases 443 | . 383 60 Destroy 0b10 Robot/C 340 | . 280 60 Destroy 0b10 Robot/NC 5 | . 5 . Destroy Leader 62 | . 62 . Successful Hack 6 | . 6 . Select Force Hacks 30 | . 30 . Influence Decreases 393 | . 300 93 Entered New Map 41 | . . 41 Time Decay 352 | . 300 52 Squads Dispatched 3 | . 3 . Investigation 1 | . 1 . Extermination . | . . . Reinforcement 2 | . 2 . Assault . | . . . Garrison . | . . . Intercept . | . . . Searches Triggered . | . . . Construction Impeded . | . . . Haulers Reinforced . | . . . Active Scanning Responses . | . . . Cargo Convoy Interrupts . | . . . Stealth | -11 -10 -10 --------- Run | Yrd Mat Sub Distress Signals 2 | . 2 . Communications Jammed . | . . . Distress Signals . | . . . Times Spotted 27 | . 23 4 Peak Tracking Total 4 | . 4 4 Tactical Retreats . | . . . Traps | -11 -10 -10 ------- Run | Yrd Mat Sub Traps Triggered 2 | . 2 . Indirectly . | . . . Trap Hack Attempts . | . . . Triggered . | . . . Disarmed . | . . . Reprogrammed . | . . . Reused . | . . . Traps Extracted . | . . . Installed . | . . . Triggered . | . . . Machines | -11 -10 -10 ---------- Run | Yrd Mat Sub Machines Disabled . | . . . Max in Single Turn . | . . . Machines Repaired . | . . . Machines Dismantled . | . . . Machines Sabotaged . | . . . Overloaded Fab Kills . | . . . Hacking | -11 -10 -10 --------- Run | Yrd Mat Sub Machines Accessed 7 | . 7 . Terminals 5 | . 5 . Fabricators . | . . . Repair Stations . | . . . Recycling Units 2 | . 2 . Scanalyzers . | . . . Garrison Access . | . . . Total Hacks 15 | . 15 . Successful 6 | . 6 . Failed 9 | . 9 . Catastrophic . | . . . Database Lockouts . | . . . Manual 16 | . 16 . Terminals 12 | . 12 . Fabricators . | . . . Repair Stations . | . . . Recycling Units 3 | . 3 . Scanalyzers . | . . . Garrison Access . | . . . Terminal Hacks . | . . . Fabricator Hacks . | . . . Repair Station Hacks . | . . . Recycling Unit Hacks . | . . . Scanalyzer . | . . . Garrison Access Hacks . | . . . Unauthorized Hacks 6 | . 6 . Terminals 5 | . 5 . Botnet 1 | . 1 . Skim 4 | . 4 . Fabricators . | . . . Repair Stations . | . . . Recycling Units 1 | . 1 . Tunnel 1 | . 1 . Scanalyzers . | . . . Garrison Access . | . . . Data Cores Recovered . | . . . Used . | . . . Hacking Detections 5 | . 5 . Full Trace Events 1 | . 1 . Feedback Events . | . . . Feedback Blocked . | . . . Robot Schematics Acquired . | . . . Robots Built . | . . . Authchips . | . . . Time . | . . . Total Robot Build Rating . | . . . Part Schematics Acquired . | . . . Parts Built . | . . . Authchips . | . . . Time . | . . . Total Part Build Rating . | . . . Part Studies Acquired . | . . . Parts Repaired . | . . . Time . | . . . Parts Recycled . | . . . Recycled Matter . | . . . Retrieved Matter . | . . . Retrieved Components . | . . . Parts Scanalyzed . | . . . Part Schematics Acquired . | . . . Parts Damaged . | . . . Bothacking | -11 -10 -10 ------------ Run | Yrd Mat Sub Used RIF Installer . | . . . Robots Hacked . | . . . Non-combat . | . . . Combat . | . . . Robot Hacks Applied . | . . . Relay Couplers Released . | . . . Fabnet Peak Effective % . | . . . Robots Rewired . | . . . Allies Hacked . | . . . Hacks Repelled . | . . . Allies | -11 -10 -10 -------- Run | Yrd Mat Sub Total Allies . | . . . Largest Group . | . . . Highest-Rated Group . | . . . Highest-Rated Ally . | . . . Total Orders . | . . . Ally Attacks . | . . . Total Damage . | . . . Kills . | . . . Allies Corrupted . | . . . Allies Melted . | . . . X0-1V1 Amusement Gains 14 | . 14 . Average Entertainment 19 | . 28 19 Good Acts 1 | . . 1 Bad Acts 1 | . . 1 Intel | -11 -10 -10 ------- Run | Yrd Mat Sub Active Infowar (turns) . | . . . Robot Analysis Total . | . . . Derelict Logs Recovered 1 | . . 1 Drone Launches . | . . . Drone Recoveries . | . . . Exploration | -11 -10 -10 ------------- Run | Yrd Mat Sub Turns Passed 1277 | 2 1147 128 Spaces Moved 564 | 1 506 57 Core . | . . . Treads 134 | . 134 . Legs 430 | 1 372 57 Wheels . | . . . Hover . | . . . Flight . | . . . Fastest Speed 120 | 120 120 190 Average Speed 148 | 120 143 190 Slowest Speed 190 | 120 190 190 Overloaded Moves . | . . . Propulsion Burnouts . | . . . Robots Hopped . | . . . Potential Cave-ins . | . . . Cave-ins Triggered . | . . . Exploration Rate (%) 30 | 2 79 10 Regions Visited 2 Branch Regions 1 Pre-discovered Areas 1 | . 1 . Known Exits Taken . | . . . Unknown Exits Taken 2 | 1 1 . Scrap Searched . | . . . Spaces Dug . | . . . Terrain Destroyed . | . . . Melee . | . . . Projectile . | . . . AOE . | . . . Terrain Rammed . | . . . Walls Destroyed . | . . . Machines Disabled . | . . . Actions | -11 -10 -10 --------- Run | Yrd Mat Sub Total 897 | 2 829 66 Wait 247 | . 247 . Move 562 | . 505 57 Hop . | . . . Pick Up 12 | . 12 . Fast Attach 1 | . 1 . Attach 2 | . . 2 Detach 1 | . . 1 Swap 8 | . 8 . Drop 6 | 2 4 . Fire 58 | . 52 6 Melee . | . . . Ram . | . . . Kick . | . . . Crush . | . . . Escape Stasis . | . . . Rewire . | . . . Trap . | . . . Miscellaneous . | . . . Route ------- -11/Scrapyard -10/Materials (discovered 5 exits: [*Mat x3] / [*Min] / [*Sub]) -10/Subcaves History --------- Turn | Location | Event 3 | -11/Scrapyard | Discovered new exit (range 0) 3 | -11/Scrapyard | Entered Materials 85 | -10/Materials | Discovered new exit (range 16) 293 | -10/Materials | Discovered new exit (range 12) 315 | -10/Materials | Build established: Mutant 379 | -10/Materials | Discovered new exit (range 14) 818 | -10/Materials | Discovered new exit (range 16) 1116 | -10/Materials | Discovered new exit (range 14) 1139 | -10/Materials | Made a sacrifice at D.C.S.S. Altar Unit 1139 | -10/Materials | Forcibly received Sfc. Transmogifier from X0-1V1 1150 | -10/Materials | Entered Subcaves 1151 | -10/Subcaves | Approached by a straggling Scientist 1179 | -10/Subcaves | Weapon slot count permanently improved by X0-1V1 (+1) 1183 | -10/Subcaves | Learned 4 Materials zone layouts 1262 | -10/Subcaves | Core integrity fell below 50% 1271 | -10/Subcaves | Core integrity fell below 20% 1278 | -10/Subcaves | Destroyed by S-10 Pest with Light Assault Rifle Last Messages --------------- 01237_ Acquired 8 matter. O3-RNX(c): "I think it's somewhere northwest of here" 01264_ S-10 Pest destroyed. 01264_ Switching to secondary target: S-10 Pest. 01265_ Subatomizers dissect the Flight Unit. 01265_ O3-RNX(c) triggered Piercing Trap. 01265_ Spikes shoot up from the floor. 01265_ O3-RNX(c) suffers critical hit (Impale). 01267_ S-10 Pest destroyed. 01267_ Switching to secondary target: S-10 Pest. 01275_ BP